[Event "Slovakian ECo-C Extraliga 2024-25"]
[Site "Slovakia"]
[Date "2024.11.24"]
[Round "2.2"]
[White "Bochnicka, Vladimir"]
[Black "Finek, Vaclav"]
[Result "0-1"]
[Annotator "TA"]
[ECO "C55"]
[WhiteElo "2347"]
[BlackElo "2472"]
[PlyCount "194"]
[EventDate "2024.09.12"]
[EventType "team-tourn"]
[EventCountry "SVK"]
[SourceTitle "playchess.com"]
[Source "ChessBase"]
[SourceQuality "1"]
[TimeControl "5400+30"]

{[%evp 85,194,180,211,203,260,245,245,245,245,245,313,303,342,269,225,153,438,411,457,457,383,389,433,426,567,552,975,970,871,825,742,538,538,538,538,537,529,381,401,395,367,372,355,372,339,314,267,0,442,431,413,385,333,252,252,220,225,0,0,0,0,0,0,0,0,-97,-97,-97,-97,-97,-97,-97,-97,-98,-98,-98,-97,-97,-97,-97,-98,-98,-18,-22,0,-22,0,-22,-22,-91,0,-98,-98,-98,-98,-98,-98,-29980,-29981,-29982,-29983,-29984,-29982,-29982,-29980,-29980,-29981,-29984,-29985,-29985,-29986]} 1. e4 {[%emt 0:00:03]} e5 {[%emt 0:00:04]} 2. Nf3 {[%emt 0:00:08]} Nc6 {[%emt 0:00:05]} 3. Bc4 {[%emt 0:01:15]} Nf6 {[%emt 0:00:06]} 4. d3 {[%emt 0:00:05]} Be7 {[%emt 0:00:04]} 5. O-O {[%emt 0:00:26]} O-O {[%emt 0:00:13]} 6. Re1 {[%emt 0:00:34]} d6 {[%emt 0:00:08]} 7. a4 {[%emt 0:00:16]} Na5 {[%emt 0:00:31]} 8. Ba2 {[%emt 0:00:26] C55: Two Knights: 4 d3, 4 d4 exd4 5 e5 and Max Lange Attack.} c5 {[%emt 0:00:05]} 9. c3 {[%emt 0:00:48]} Nc6 {[%emt 0:00:07]} 10. Na3 {[%emt 0:02:53]} h6 {[%emt 0:02:00]} 11. h3 {[%emt 0:00:12]} a6 {[%emt 0:00:58]} 12. Bd2 {[%emt 0:08:59]} Rb8 {[%emt 0:01:41] 12...Bd7 is the hot move.} 13. Nc2 {[%emt 0:03:07]} b5 {[%emt 0:01:11]} 14. axb5 {[%emt 0:00:48]} axb5 {[%emt 0:00:09]} 15. b4 {[%emt 0:03:14]} cxb4 {[%emt 0:11:20]} 16. cxb4 {[%emt 0:04:42]} Bd7 $146 {[%emt 0:06:13]} ({Predecessor:} 16... Be6 17. Bxe6 fxe6 18. d4 Qd7 19. Ra3 Rfc8 20. Rd3 exd4 21. Nfxd4 Nxd4 22. Nxd4 Rc4 {1-0 Bacrot,E (2692)-Naumann,A (2561) Bundesliga 1617 2016 (14.6)}) 17. d4 {[%emt 0:03:43]} Rc8 {[%emt 0:09:08]} 18. Rc1 {[%emt 0:08:48]} Qb6 {[%emt 0:06:41]} 19. Bc3 {[%emt 0:09:12]} Qb8 {[%emt 0:05:35]} 20. Qd3 {[%emt 0:06:03]} Bd8 {[%emt 0:10:45]} 21. Ne3 {[%emt 0:10:53]} exd4 {[%emt 0:02:07]} 22. Nxd4 {[%emt 0:00:16]} Ne5 {[%emt 0:11:22]} 23. Qb1 {[%emt 0:00:30]} Nh5 {[%emt 0:02:12]} 24. Ndf5 {[%emt 0:15:29]} Nf4 {[%emt 0:02:35]} 25. Nd5 {[%emt 0:00:12]} Nxd5 {[%emt 0:02:54]} 26. Bxd5 {[%emt 0:05:39]} Bxf5 {[%emt 0:02:51]} 27. exf5 {[%emt 0:00:15]} Bf6 {[%emt 0:01:27]} 28. Bxe5 {[%emt 0:04:15]} Bxe5 {[%emt 0:02:39]} 29. Qb3 {[%emt 0:01:40]} Qa7 {[%emt 0:03:55]} 30. g3 {[%emt 0:01:42]} Qd7 {[%emt 0:06:36]} 31. Qf3 {[%emt 0:01:00]} Rxc1 {[%emt 0:02:56]} 32. Rxc1 {[%emt 0:00:09]} Rc8 {[%emt 0:00:20]} 33. Rc6 {[%emt 0:01:27]} Rxc6 {[%emt 0:05:40]} 34. Bxc6 {[%emt 0:00:06]} Qd8 {[%emt 0:00:03]} 35. Qd5 {[%emt 0:02:07]} Qg5 {[%emt 0:02:13]} 36. Bxb5 {[%emt 0:00:45]} Qxf5 {[%emt 0:00:57]} 37. Bd3 {[%emt 0:00:28]} Qc8 {[%emt 0:00:20]} 38. b5 {[%emt 0:00:45]} g5 {[%emt 0:00:44]} 39. b6 {[%emt 0:00:23]} Qc5 {[%emt 0:00:29]} 40. Qa8+ {[%emt 0:02:33]} Kg7 {[%emt 0:00:05]} 41. b7 {[%emt 0:02:05]} Bxg3 {[%emt 0:00:50]} 42. Qa1+ {[%emt 0:00:26]} Be5 {[%emt 0:00:00]} 43. Qxe5+ {[%emt 0:00:00]} (43. b8=Q Bxa1 44. Qa8 Qe5 $17) 43... dxe5 {[%emt 0:00:00]} 44. b8=Q {[%emt 0:00:00]} (44. b8=B $2 {perishes.} Kf6 $19) 44... Qd4 {[%emt 0:00:00]} 45. Bf5 {[%emt 0:00:00]} Qd1+ {[%emt 0:00:00]} 46. Kg2 {[%emt 0:00:00]} ({Much less strong is} 46. Kh2 Qd4 47. Kg2 Qd5+ 48. Kg3 Qd4) 46... Qd5+ {[%emt 0:00:00]} 47. Kg3 $1 {[%emt 0:00:00]} Qd4 {[%emt 0:00:00]} 48. Qb1 $1 {[%emt 0:00:00]} Qf4+ {[%emt 0:00:00]} 49. Kg2 {[%emt 0:00:00]} Kf6 {[%emt 0:00:00]} 50. Bc2 {[%emt 0:00:00]} Qc4 $2 {[%emt 0:00:00]} (50... g4 $16) 51. Be4 {[%emt 0:00:00]} Kg7 {[%emt 0:00:00]} 52. Qd3 {[%emt 0:00:00]} Qe6 {[%emt 0:00:00]} 53. Qf3 {[%emt 0:00:00]} Qd6 {[%emt 0:02:36]} 54. Qf5 {[%emt 0:00:00]} Kf8 {[%emt 0:00:28]} 55. Kg3 {[%emt 0:00:00]} Qd4 {[%emt 0:03:44]} 56. Kg4 {[%emt 0:00:00]} Qd1+ {[%emt 0:00:26]} 57. Qf3 {[%emt 0:00:00]} Qd2 {[%emt 0:00:51]} 58. Bd5 {[%emt 0:04:43]} Qb4+ {[%emt 0:00:16]} 59. Kg3 {[%emt 0:00:23]} Qe7 {[%emt 0:00:06]} 60. Qf5 {[%emt 0:00:36]} Qa3+ {[%emt 0:00:59]} 61. Kg4 {[%emt 0:04:02]} Qa4+ {[%emt 0:00:26] [#]} 62. Qe4 $1 {[%emt 0:01:06]} Qd7+ {[%emt 0:00:27]} 63. Kg3 {[%emt 0:00:10]} Qd6 {[%emt 0:00:18]} 64. Kg2 {[%emt 0:00:23]} Kg7 {[%emt 0:00:38]} 65. Qf3 {[%emt 0:00:14]} Qd7 {[%emt 0:00:26]} 66. Be4 $2 {[%emt 0:00:11]} (66. Ba2 $18) 66... Qe6 $2 {[%emt 0:00:27][%mdl 8192]} (66... Qd6 $1 $11 67. Qf5 Kf8) 67. Kg3 {[%emt 0:00:48]} Kf8 {[%emt 0:00:42]} 68. Qf5 {[%emt 0:00:52]} Qd6 {[%emt 0:00:20]} 69. Qh7 {[%emt 0:01:18]} Qf6 {[%emt 0:00:42]} 70. Bf5 {[%emt 0:00:41]} Ke7 {[%emt 0:00:28]} 71. Kg4 $2 {[%emt 0:01:00]} (71. Kg2 $18) 71... e4 $1 $11 {[%emt 0:00:38]} 72. Kg3 {[%emt 0:00:39]} (72. Bxe4 $2 {gets mated.} Qf4+ 73. Kh5 Qh4#) (72. Kh5 $5 g4 $8 73. h4 $11 (73. Bxe4 $2 Qg5#)) 72... Qe5+ {[%emt 0:00:16]} 73. Kg2 {[%emt 0:00:14]} e3 {[%emt 0:00:06]} 74. fxe3 Qxe3 {[%emt 0:00:08]} 75. Qxh6 {[%emt 0:01:05]} (75. Bd3 $11) 75... Qd2+ $17 {[%emt 0:00:30]} 76. Kg1 {[%emt 0:00:27]} Qd4+ {[%emt 0:00:18]} 77. Kg2 {[%emt 0:00:32]} Qd5+ {[%emt 0:00:05]} 78. Kg3 {[%emt 0:00:12]} Qxf5 {[%emt 0:00:11]} 79. Qh5 {[%emt 0:00:10]} Ke6 {[%emt 0:00:46]} 80. Kg2 {[%emt 0:00:28]} Ke5 {[%emt 0:01:12]} 81. Qh8+ {[%emt 0:00:15]} Kf4 {[%emt 0:01:22]} 82. Qc3 {[%emt 0:00:15]} Qd5+ {[%emt 0:00:20]} 83. Kf2 {[%emt 0:00:16]} Qa2+ {[%emt 0:00:29]} (83... Kf5 $17) 84. Kg1 {[%emt 0:00:11]} Qb1+ {[%emt 0:00:06]} 85. Kf2 {[%emt 0:00:15]} Qa2+ {[%emt 0:00:05]} 86. Kg1 {[%emt 0:00:03]} Qe6 {[%emt 0:01:23]} 87. Kf2 $1 {[%emt 0:00:04] [#]} Kf5 {[%emt 0:00:06]} (87... Qb6+ $1 $17 88. Kg2 Kf5) 88. Kf3 {[%emt 0:00:30]} (88. Qf3+ $1 $11 Kg6 89. Kg2) 88... Qe4+ $17 {[%emt 0:00:26]} 89. Kf2 {[%emt 0:00:06]} Kg6 {[%emt 0:00:22]} 90. Qb3 {[%emt 0:00:18]} Qe6 {[%emt 0:00:39]} 91. Qc3 $2 {[%emt 0:00:11][%mdl 8192]} (91. Qb8 $17) 91... Qf6+ {[%emt 0:00:41]} 92. Qxf6+ {[%emt 0:00:16]} Kxf6 {[%emt 0:00:05]} 93. Ke2 {[%emt 0:00:38]} Kg6 {[%emt 0:00:08]} 94. Kf2 {[%emt 0:00:31]} Kh5 {[%emt 0:00:05]} 95. Kg3 {[%emt 0:00:14]} f5 {[%emt 0:00:06]} 96. Kh2 {[%emt 0:00:11]} Kh4 {[%emt 0:00:06]} 97. Kg2 {[%emt 0:00:05]} f4 {[%emt 0:00:04]} 0-1

[Event "Slovakian ECo-C Extraliga 2024-25"]
[Site "Slovakia"]
[Date "2024.11.24"]
[Round "2.2"]
[White "Delgerdalai, Bayarjavkhlan"]
[Black "Stalmach, Richard"]
[Result "1/2-1/2"]
[Annotator "TA"]
[ECO "B90"]
[WhiteElo "2347"]
[BlackElo "2444"]
[PlyCount "82"]
[EventDate "2024.09.12"]
[EventType "team-tourn"]
[EventCountry "SVK"]
[SourceTitle "playchess.com"]
[Source "ChessBase"]
[SourceQuality "1"]
[TimeControl "5400+30"]

{[%evp 10,82,18,10,18,0,0,0,0,0,0,0,-7,0,0,-23,-43,-54,-38,-42,-23,-31,-31,-41,-41,-48,-24,-25,40,51,51,55,62,60,61,76,46,9,2,-74,0,0,76,70,71,72,516,-14,-14,-12,0,0,0,-2,18,17,64,68,69,67,75,73,76,18,20,17,9,0,20,0,0,0,4,0,27]} 1. e4 {[%emt 0:00:06]} c5 {[%emt 0:00:08]} 2. Nf3 {[%emt 0:00:06][%cal Bg1f3,Bf3d4,Bd4f5][%mdl 32]} d6 {[%emt 0:00:05][%cal Bd7d6,Bd6d5,Bd5d4][%mdl 32]} 3. d4 {[%emt 0:00:08]} cxd4 {[%emt 0:00:04]} 4. Nxd4 {[%emt 0:00:08]} Nf6 {[%emt 0:00:05]} 5. Nc3 {[%emt 0:00:08]} a6 {[%emt 0:00:04]} 6. a3 {[%emt 0:00:06]} e5 {[%emt 0:00:05]} 7. Nf5 {[%emt 0:00:05]} d5 {[%emt 0:08:01]} 8. Bg5 $1 {[%emt 0:00:12]} d4 {[%emt 0:00:51]} 9. Bxf6 $1 {[%emt 0:00:13]} gxf6 {[%emt 0:06:55]} 10. Nb1 {[%emt 0:00:06]} Bxf5 {[%emt 0:06:43]} 11. exf5 {[%emt 0:00:02]} Qd5 {[%emt 0:14:21]} 12. Qh5 {[%emt 0:00:07]} Nd7 {[%emt 0:03:28]} 13. Nd2 {[%emt 0:09:11]} Rc8 {[%emt 0:00:14] Prevents Bc4.} 14. Bd3 {[%emt 0:23:37]} Qxg2 {[%emt 0:00:47]} 15. Be4 {[%emt 0:00:32] White is weak on the dark squares} Qg5 {[%emt 0:01:10]} 16. Qf3 {[%emt 0:05:16][%cal Oe1c1]} Bh6 {[%emt 0:12:32]} 17. O-O-O {[%emt 0:04:18]} Nc5 {[%emt 0:00:11]} 18. Kb1 {[%emt 0:04:54]} (18. Bd5 {looks sharper.} d3 19. c3 Qf4 20. Qh5) 18... Rc7 {[%emt 0:00:43]} (18... Qf4 $1 $11) 19. Rhg1 $14 {[%emt 0:36:43]} Qf4 {[%emt 0:00:31]} 20. Qe2 {[%emt 0:00:25] Hoping for Rg4.} Nxe4 {[%emt 0:04:31]} (20... Qxh2 $2 21. Rg2 Qh4 22. Rg4 $18) 21. Nxe4 {[%emt 0:00:06]} Ke7 {[%emt 0:01:05][%cal Oh8c8]} (21... Qxh2 $2 22. Rh1 (22. Nxf6+ Kf8 $18) 22... Qf4 23. Nxf6+ Kd8 24. Nd5 Qxf5 25. Rxh6 $18) 22. Rg4 $1 $36 {[%emt 0:04:47][%mdl 2048] White has strong initiative.} Qxf5 {[%emt 0:00:20]} 23. Ng3 {[%emt 0:03:38]} (23. Rxd4 $5 Rd7 (23... exd4 24. Ng3+ Qe6 25. Re4 $18) 24. Rxd7+ Qxd7 25. Rh4 $14) 23... Qe6 {[%emt 0:01:07] And now ...Rhc8 would win.} 24. Qe4 {[%emt 0:03:45]} (24. Qf3 $11 {remains equal.} Bf4 25. Ne2) 24... Kd7 {[%emt 0:05:04]} (24... Bf4 $17 25. Nf5+ Kd8) 25. Nf5 $11 {[%emt 0:01:38] Chess con chili.} Bf8 {[%emt 0:00:44] [#]} (25... Bf4 $1 $11 {keeps the balance.}) 26. Nxd4 $1 $16 {[%emt 0:02:33] White is more active.} exd4 {[%emt 0:01:53]} 27. Qxd4+ {[%emt 0:00:01]} Kc6 $2 {[%emt 0:00:46][%mdl 8192]} (27... Bd6 $16 {is more resistant.} 28. Re4 Qf5 29. Qxd6+ Kc8) 28. Rg3 $2 {[%emt 0:00:59]} (28. Re4 $18 Qf5 29. Rf4 (29. Re8 b5 $18)) 28... Bc5 $11 {[%emt 0:11:47]} 29. Rc3 $1 {[%emt 0:00:29]} b6 {[%emt 0:03:06] Threatens to win with ...Kb7.} 30. b4 {[%emt 0:00:21]} Rb8 {[%emt 0:00:03]} 31. Kc1 {[%emt 0:00:44]} Qe5 {[%emt 0:09:34]} 32. bxc5 {[%emt 0:00:25]} Qxd4 {[%emt 0:00:04]} (32... Kb7 $11 {deserves consideration.}) 33. Rxd4 $14 {[%emt 0:00:03] cxb6+ is the strong threat.} bxc5 $11 {[%emt 0:00:04][%mdl 4096] Endgame. KRR-KRR} 34. Rf4 {[%emt 0:00:31]} Re8 {[%emt 0:02:52]} 35. Rxf6+ {[%emt 0:00:12]} Re6 {[%emt 0:00:05] [#]} 36. Rcf3 {[%emt 0:00:14]} (36. Rf5 $1 $16 {[%cal Rf5c5]} Kb6 37. Rh3) 36... Rxf6 {[%emt 0:00:26] The position is equal.} 37. Rxf6+ {[%emt 0:00:01]} Kb5 {[%emt 0:00:05]} 38. h4 {[%emt 0:01:29]} a5 {[%emt 0:02:17]} 39. Kb2 {[%emt 0:01:03]} Kc4 {[%emt 0:01:14]} 40. Rf4+ {[%emt 0:00:32]} Kd5 {[%emt 0:00:08]} 41. Kc3 {[%emt 0:00:00]} Re7 {[%emt 0:00:00] Weighted Error Value: White=0.22 (precise) /Black=0.33.  Loses game:     	---       	Black=1      Missed win:     	White=1     	---        Mistake:       	White=2     	Black=4      Inaccurate:     	White=1     	Black=1      OK:         	White=9     	Black=17     Best:        	White=1     	Black=3      Strong:       	White=4     	---        Brilliant:      	White=1     	---} 1/2-1/2

[Event "Slovakian ECo-C Extraliga 2024-25"]
[Site "Slovakia"]
[Date "2024.11.24"]
[Round "2.2"]
[White "Manik, Mikulas"]
[Black "Laurusas, Tomas"]
[Result "0-1"]
[Annotator "TA"]
[ECO "B10"]
[WhiteElo "2318"]
[BlackElo "2579"]
[PlyCount "128"]
[EventDate "2024.09.12"]
[EventType "team-tourn"]
[EventCountry "SVK"]
[SourceTitle "playchess.com"]
[Source "ChessBase"]
[SourceQuality "1"]
[TimeControl "5400+30"]

{[%evp 10,128,4,7,20,0,0,0,0,0,10,-11,-12,-17,-19,-20,-18,-12,-13,-19,-16,0,-12,-14,-18,0,0,-16,-13,-14,-5,-12,-12,-12,-8,-10,-9,-10,0,-10,-10,-22,-20,-12,-18,-15,0,-4,0,-35,-41,-26,-22,-33,-40,-35,-34,-33,-13,-37,-38,-31,-40,-30,-42,-35,-39,-55,-29,-28,-28,-25,-24,-33,-28,-35,-37,-38,-17,-46,-12,-9,-9,-18,0,-16,0,-18,-8,-22,-10,-17,-14,-13,-22,-8,0,-8,0,-39,0,-8,-8,-8,-8,-22,-24,-57,-56,-56,-50,-57,-56,-57,-57,-57,-57,-70,-57,-57,0]} 1. e4 {[%emt 0:00:02]} c6 {[%emt 0:02:36]} 2. c4 {[%emt 0:00:15]} d5 {[%emt 0:00:06]} 3. exd5 {[%emt 0:00:08]} cxd5 {[%emt 0:00:07]} 4. cxd5 {[%emt 0:00:04]} Nf6 {[%emt 0:00:20]} 5. Nc3 {[%emt 0:00:08]} Nxd5 {[%emt 0:01:23]} 6. Nf3 {[%emt 0:00:05]} Nxc3 {[%emt 0:06:52]} 7. bxc3 {[%emt 0:00:13]} e6 {[%emt 0:00:11]} 8. d4 {[%emt 0:00:27]} Qc7 {[%emt 0:01:40] The position is equal.} 9. Bb2 {[%emt 0:00:07]} Nd7 {[%emt 0:01:19]} 10. Bd3 {[%emt 0:01:01] [#]} Ba3 $1 {[%emt 0:10:00]} 11. Qb3 {[%emt 0:00:23]} (11. Qc2 Bxb2) 11... Bxb2 {[%emt 0:00:22]} 12. Qxb2 {[%emt 0:00:03]} O-O {[%emt 0:01:41]} 13. O-O {[%emt 0:00:38]} b6 {[%emt 0:00:31]} 14. Be4 {[%emt 0:01:40]} Bb7 {[%emt 0:07:01]} 15. Bxb7 {[%emt 0:01:44]} Qxb7 {[%emt 0:00:10]} 16. c4 {[%emt 0:01:51]} Rac8 {[%emt 0:00:56]} 17. Rfc1 {[%emt 0:07:34]} Rc6 {[%emt 0:12:27]} 18. Rc3 {[%emt 0:04:28]} Rfc8 {[%emt 0:00:44]} 19. Rac1 {[%emt 0:00:32]} Qc7 {[%emt 0:09:07]} 20. g3 {[%emt 0:09:59]} h6 {[%emt 0:02:28]} 21. Qe2 {[%emt 0:06:36]} Qd8 {[%emt 0:05:05]} 22. R3c2 {[%emt 0:04:58]} R6c7 {[%emt 0:02:51]} 23. Kg2 {[%emt 0:00:28]} Nf6 {[%emt 0:00:09][%cal Bd7f6,Bf6d5,Bd5b4][%mdl 32]} 24. h3 {[%emt 0:05:48]} Qd6 {[%emt 0:02:26]} 25. Qe5 {[%emt 0:04:25]} Qb4 {[%emt 0:02:27]} 26. Qe2 {[%emt 0:00:50]} Qa4 {[%emt 0:04:38]} 27. Ne5 {[%emt 0:06:35]} b5 {[%emt 0:03:54]} 28. Qd3 {[%emt 0:00:58]} Nd5 {[%emt 0:07:35] [#] ...Nb4 is the strong threat.} 29. Qb3 {[%emt 0:05:32]} (29. Qf3 $5 f6 (29... bxc4 30. Rxc4 Rxc4 31. Qxf7+ Kh7 32. Rxc4 $11) 30. Qg4 $11) 29... Qxb3 {[%emt 0:00:24]} 30. axb3 {[%emt 0:00:02]} Nb4 {[%emt 0:00:08]} 31. Rd2 {[%emt 0:13:02]} bxc4 {[%emt 0:03:52]} 32. Rxc4 {[%emt 0:01:45]} Rxc4 {[%emt 0:00:35]} 33. Nxc4 $15 {[%emt 0:01:19][%mdl 4096] Endgame. KRN-KRN} Rb8 {[%emt 0:00:14]} 34. Ne3 {[%emt 0:02:56]} Kf8 {[%emt 0:04:24]} 35. Rd1 {[%emt 0:03:11]} Nc6 {[%emt 0:01:16]} 36. d5 {[%emt 0:01:09]} exd5 {[%emt 0:00:02]} 37. Rxd5 {[%emt 0:04:36]} Rxb3 {[%emt 0:00:06]} 38. Rd7 {[%emt 0:01:14]} a5 {[%emt 0:07:37]} 39. Rc7 {[%emt 0:00:53] Rc8+ would now be deadly.} Nd8 {[%emt 0:00:13]} 40. Ra7 {[%emt 0:02:45]} Rb5 {[%emt 0:00:47]} 41. Nc4 {[%emt 0:00:20]} Nb7 {[%emt 0:00:37]} 42. g4 {[%emt 0:00:23]} g6 {[%emt 0:00:00]} 43. f4 {[%emt 0:00:00]} Kg7 {[%emt 0:00:00]} 44. Kf3 {[%emt 0:00:00]} Kf6 {[%emt 0:00:00]} 45. Ra6+ {[%emt 0:00:00]} Ke7 {[%emt 0:00:00]} 46. Ne5 {[%emt 0:00:00]} Nd8 {[%emt 0:00:00]} 47. Ra7+ {[%emt 0:00:00]} Ke6 {[%emt 0:00:00]} 48. Ra8 {[%emt 0:00:00]} Nb7 {[%emt 0:00:27]} 49. Ra6+ {[%emt 0:00:00]} Ke7 {[%emt 0:00:02]} 50. h4 {[%emt 0:00:00]} h5 {[%emt 0:01:57]} 51. g5 {[%emt 0:00:00]} Nd6 {[%emt 0:01:27]} 52. Nc6+ {[%emt 0:00:00]} Kf8 {[%emt 0:00:45]} 53. Ne5 {[%emt 0:00:00]} Ke7 {[%emt 0:01:06]} 54. Nc6+ {[%emt 0:00:00]} Kf8 {[%emt 0:00:01]} 55. Ne5 {[%emt 0:00:00]} Nf5 {[%emt 0:00:17]} 56. Ra7 $1 {[%emt 0:00:00]} Nxh4+ {[%emt 0:00:37]} 57. Kf2 {[%emt 0:00:00]} Rb2+ {[%emt 0:00:52]} 58. Kg3 {[%emt 0:00:00]} Nf5+ {[%emt 0:00:06] Black is slightly better.} 59. Kh3 {[%emt 0:00:00]} Nd6 {[%emt 0:01:21]} 60. Rxa5 {[%emt 0:00:00]} Rb3+ {[%emt 0:00:39]} 61. Kg2 {[%emt 0:00:00]} Rb7 {[%emt 0:00:42]} 62. Rd5 {[%emt 0:01:01]} Nf5 {[%emt 0:01:13] Hoping for ...Ne3+.} 63. Rd8+ {[%emt 0:00:15]} Kg7 {[%emt 0:00:07]} 64. Rd7 Rb2+ {[%mdl 32768] Weighted Error Value: White=0.06 (flawless) /Black=0.05 (flawless) .  Mistake:       	---       	Black=1      Inaccurate:     	White=3     	Black=3      OK:         	White=23    	Black=29     Best:        	White=1     	Black=1      Strong:       	White=1     	---       . Loss on time!?} ({Better is} 64... Rxd7 $15 65. Nxd7 Ne3+ 66. Kg3 Nd5) 0-1

[Event "Slovakian ECo-C Extraliga 2024-25"]
[Site "Slovakia"]
[Date "2024.11.24"]
[Round "2.3"]
[White "Sipos, Istvan"]
[Black "Kriebel, Tadeas"]
[Result "1-0"]
[Annotator "TA"]
[ECO "D31"]
[WhiteElo "2454"]
[BlackElo "2512"]
[PlyCount "59"]
[EventDate "2024.09.12"]
[EventType "team-tourn"]
[EventCountry "SVK"]
[SourceTitle "playchess.com"]
[Source "ChessBase"]
[SourceQuality "1"]
[TimeControl "5400+30"]

{[%evp 9,59,18,27,17,63,31,39,35,39,24,34,15,27,4,0,0,71,66,138,100,120,113,120,125,116,68,168,209,250,237,233,204,285,254,463,466,470,467,516,518,590,596,764,313,310,310,283,287,364,378,889,610]} 1. c4 {[%emt 0:00:04]} e6 {[%emt 0:00:12]} 2. Nc3 {[%emt 0:00:15]} d5 {[%emt 0:00:05]} 3. d4 {[%emt 0:00:09]} c6 {[%emt 0:00:08]} 4. e3 {[%emt 0:03:05]} Bd6 {[%emt 0:00:10]} 5. Bd3 {[%emt 0:06:17]} f5 {[%emt 0:00:07]} 6. Qc2 {[%emt 0:07:41]} Nh6 {[%emt 0:01:01]} (6... Nf6 $11 {deserves consideration.}) 7. Nf3 {[%emt 0:05:23]} O-O {[%emt 0:00:13]} 8. b3 {[%emt 0:05:40] White is slightly better.} Nd7 {[%emt 0:00:32]} 9. Bb2 {[%emt 0:00:06]} Qe7 {[%emt 0:06:38]} 10. h3 {[%emt 0:03:21]} b6 {[%emt 0:14:57]} 11. cxd5 {[%emt 0:21:30]} exd5 {[%emt 0:00:08]} 12. O-O-O {[%emt 0:10:33]} Bb7 {[%emt 0:02:05]} (12... a5 $11) 13. g4 $1 $16 {[%emt 0:02:00]} fxg4 {[%emt 0:12:58]} (13... c5 $1 $14) 14. Bxh7+ {[%emt 0:00:16]} Kh8 {[%emt 0:00:05] [#]} 15. Ne5 $1 {[%emt 0:00:13][%mdl 512]} Bxe5 {[%emt 0:18:18]} 16. dxe5 {[%emt 0:00:05] Hoping for hxg4.} g3 {[%emt 0:00:03]} 17. f4 {[%emt 0:01:57] Threatens to win with Rhg1.} (17. fxg3 Nxe5 18. g4 Rad8 $17) 17... Nc5 {[%emt 0:01:55] [#]} (17... Nxe5 $1 $14 18. fxe5 Rf2) 18. Ne2 $1 $18 {[%emt 0:04:13]} g2 {[%emt 0:01:20]} 19. Rhg1 {[%emt 0:00:17]} Bc8 {[%emt 0:00:07] [#]} 20. e6 $1 {[%emt 0:08:33]} (20. Rxg2 $6 Bf5 21. Bxf5 Nxf5) 20... Bxe6 {[%emt 0:12:43]} 21. Rxg2 {[%emt 0:00:32]} Rf7 {[%emt 0:11:44] [#]} (21... Nf5 {keeps fighting.} 22. Rdg1 Rf7) 22. Rxg7 $1 {[%emt 0:04:45][%mdl 512]} Rxg7 {[%emt 0:00:04]} 23. Rg1 {[%emt 0:00:04]} Bg4 {[%emt 0:04:43]} 24. hxg4 {[%emt 0:01:41] Black must now prevent g5.} Qxe3+ {[%emt 0:00:30]} 25. Kb1 {[%emt 0:00:55]} Ne4 {[%emt 0:01:17] Inhibits g5.} 26. Bxe4 {[%emt 0:00:57]} (26. Bxg7+ Kxg7 27. Bxe4 (27. Qxc6 Qxe2 28. Qg6+ Kh8 $11) 27... Qxe4 $14) (26. g5 $142 Kxh7 27. Qxc6 (27. Bxg7 Kxg7 28. gxh6+ Kh8 $18) 27... Nxg5 28. fxg5 (28. Qxa8 Qe4+ 29. Ka1 d4 $18) 28... Qe4+ 29. Ka1) 26... Qxe4 {[%emt 0:00:07]} 27. Qxe4 {[%emt 0:00:10]} (27. Bxg7+ Kxg7 28. Qxe4 dxe4 $11) 27... dxe4 {[%emt 0:00:03]} 28. Rh1 $1 {[%emt 0:00:03]} ({Stronger than} 28. Bxg7+ Kxg7 29. Nd4 c5 30. Ne6+ Kg6 $15) 28... Kg8 {[%emt 0:03:27]} 29. Rxh6 {[%emt 0:00:06]} Rxg4 {[%emt 0:00:02]} (29... Rh7 30. Rxh7 (30. Rxc6 Rh2 $18) 30... Kxh7) 30. Rh8+ {[%emt 0:00:05] Weighted Error Value: White=0.38/Black=0.56.  Mistake:       	White=1     	Black=6      Inaccurate:     	White=1     	Black=1      OK:         	White=5     	Black=4      Best:        	White=5     	Black=1      Strong:       	White=4     	---        Brilliant:      	White=1     	---} ({Less strong is} 30. Rxc6 Rg2 $18) 1-0